fUST/lending_fUST_20250815
["ID","MTS","AMOUNT","RATE_DAILY","PERIOD"]
[379305969,1755244246748,-500.0,0.00020589,2]
[379305970,1755244246758,-500.0,0.00020589,2]
[379305971,1755244246767,-501.68219204,0.00020589,2]
[379305972,1755244246776,-500.0,0.00020589,2]
[379305973,1755244246786,-500.0,0.00020589,2]
[379305974,1755244246795,-348.69065731,0.00020589,2]
[379305975,1755244246805,-599.94270815,0.00020589,2]
[379305976,1755244246817,-280.65641991,0.00020605,2]
[379305977,1755244246827,-263.34307843,0.00020641,2]
[379305978,1755244246836,-500.0,0.00020645,2]
[379305979,1755244246846,-500.0,0.00020645,2]
[379305980,1755244246855,-500.56739781,0.00020645,2]
[379305981,1755244246864,-500.0,0.00020645,2]
[379305982,1755244246873,-500.0,0.00020645,2]
[379305983,1755244246883,-500.98296217,0.00020645,2]
[379305984,1755244246892,-502.77993065,0.0002065,2]
[379305985,1755244246901,-420.0,0.00020792,2]
[379305986,1755244246911,-1064.40304539,0.00020895,2]
[379305987,1755244246920,-500.0,0.00020932,2]
[379305988,1755244246929,-151.0,0.00020932,2]
[379305989,1755244246939,-6455.31058063,0.00020932,2]
[379305990,1755244246948,-1062.49809899,0.00020968,2]
[379305991,1755244246957,-1500.0,0.00020968,2]
[379305992,1755244246967,-1000.0,0.00021137,2]
[379305993,1755244246976,-1000.0,0.00021137,2]
[379305994,1755244246985,-1000.0,0.00021137,2]
[379305995,1755244246994,-1000.0,0.00021193,2]
[379305996,1755244247004,-1000.0,0.00021193,2]
[379305997,1755244247013,-1000.0,0.00021193,2]
[379305998,1755244247022,-160.0,0.00021195,2]
[379305999,1755244247032,-528.28344625,0.00021195,2]
[379306000,1755244247041,-216.77912109,0.00021195,2]
[379306001,1755244247051,-160.0,0.00021195,2]
[379306002,1755244247062,-160.0,0.00021195,2]
[379306003,1755244247071,-771.21601939,0.00021196,2]
[379306004,1755244247081,-771.21601939,0.00021196,2]
[379306005,1755244247090,-771.21601939,0.00021196,2]
[379306006,1755244247100,-771.21601939,0.00021196,2]
[379306007,1755244247109,-771.21601939,0.00021196,2]
[379306008,1755244247118,-771.21601939,0.00021196,2]
[379306009,1755244247128,-771.21601939,0.00021196,2]
[379306010,1755244247137,-771.21601939,0.00021196,2]
[379306011,1755244247147,-771.21601939,0.00021196,2]
[379306012,1755244247156,-795.31651999,0.00021196,2]
[379306013,1755244247166,-795.31651999,0.00021196,2]
[379306014,1755244247175,-795.31651999,0.00021196,2]
[379306015,1755244247184,-795.31651999,0.00021196,2]
[379306016,1755244247193,-795.31651999,0.00021196,2]
[379306017,1755244247203,-795.31651999,0.00021196,2]
[379306018,1755244247212,-795.31651999,0.00021196,2]
[379306019,1755244247222,-795.31651999,0.00021196,2]
[379306020,1755244247231,-795.31651999,0.00021196,2]
[379306021,1755244247240,-244.309315,0.00021197,2]
[379306022,1755244247250,-1034.89,0.00021198,10]
[379306023,1755244247259,-674.52,0.00021199,3]
[379306024,1755244247269,-151.0,0.00021202,2]
[379306025,1755244247278,-151.318924,0.00021202,2]
[379306026,1755244247288,-277.231383,0.00021202,2]
[379306027,1755244247297,-277.231383,0.00021202,2]
[379306028,1755244247307,-151.0,0.00021208,2]
[379306029,1755244247316,-151.0,0.00021208,2]
[379306030,1755244247326,-277.231383,0.00021208,2]
[379306031,1755244247336,-277.231383,0.00021208,2]
[379306032,1755244247346,-277.231383,0.00021208,2]
[379306033,1755244247356,-277.231383,0.00021208,2]
[379306034,1755244247365,-152.087224,0.00021208,2]
[379306035,1755244247375,-151.0,0.00021208,2]
[379306036,1755244247384,-151.0,0.00021208,2]
[379306037,1755244247394,-151.0,0.00021208,2]
[379306038,1755244247403,-17842.522448,0.00021209,2]
[379306039,1755244247412,-151.0,0.00021209,2]
[379306040,1755244247422,-151.0,0.00021209,2]
[379306041,1755244247431,-151.0,0.00021209,2]
[379306042,1755244247440,-151.0,0.00021209,2]
[379306043,1755244247449,-151.0,0.00021209,2]
[379306044,1755244247459,-151.0,0.00021209,2]
[379306045,1755244247468,-151.0,0.00021209,2]
[379306046,1755244247477,-151.0,0.00021209,2]
[379306047,1755244247487,-151.0,0.00021209,2]
[379306048,1755244247496,-151.0,0.00021209,2]
[379306049,1755244247506,-151.0,0.00021209,2]
[379306050,1755244247518,-151.0,0.00021209,2]
[379306051,1755244247527,-151.0,0.00021209,2]
[379306052,1755244247536,-151.0,0.00021209,2]
[379306053,1755244247546,-152.79782294,0.00021209,2]
[379306054,1755244247555,-151.0,0.00021209,2]
[379306055,1755244247567,-151.0,0.00021209,2]
[379306056,1755244247576,-151.0,0.00021209,2]
[379306057,1755244247585,-151.0,0.00021209,2]
[379306058,1755244247594,-151.0,0.00021209,2]
[379306059,1755244247604,-151.0,0.00021209,2]
[379306060,1755244247614,-151.0,0.00021209,2]
[379306061,1755244247623,-151.0,0.00021209,2]
[379306062,1755244247632,-151.0,0.00021209,2]
[379306063,1755244247641,-286.15995431,0.00021209,2]
[379306064,1755244247650,-151.0,0.00021209,2]
[379306065,1755244247660,-151.0,0.00021209,2]
[379306066,1755244247669,-151.0,0.00021209,2]
[379306067,1755244247678,-151.0,0.00021209,2]
[379306068,1755244247687,-151.0,0.00021209,2]
[379306069,1755244247697,-173.44277727,0.00021209,2]
[379306070,1755244247706,-500.0,0.00021228,2]
[379306071,1755244247716,-151.0,0.00021254,2]
[379306072,1755244247725,-151.0,0.00021254,2]
[379306073,1755244247734,-500.75995854,0.00021273,2]
[379306074,1755244247743,-500.0,0.00021273,2]
[379306075,1755244247752,-500.0,0.00021273,2]
[379306076,1755244247761,-500.0,0.00021273,2]
[379306077,1755244247770,-150.0,0.00021273,2]
[379306078,1755244247779,-236.8543965,0.00021273,2]
[379306079,1755244247789,-151.0,0.00021282,2]
[379306080,1755244247798,-277.231383,0.00021282,2]
[379306081,1755244247808,-277.231383,0.00021282,2]
[379306082,1755244247817,-160.0,0.00021435,2]
[379306083,1755244247827,-1064.40304539,0.00021445,2]
[379306084,1755244247836,-6455.31058063,0.00021448,2]
[379306085,1755244247846,-2000.0,0.00021516,2]
[379306086,1755244247856,-151.0,0.00021596,2]
[379306087,1755244247865,-151.0,0.00021597,2]
[379306088,1755244247875,-277.231383,0.00021597,2]
[379306089,1755244247884,-277.231383,0.00021597,2]
[379306090,1755244247894,-157.223366,0.000216,2]
[379306091,1755244247903,-23609.24358566,0.00021621,2]
[379306092,1755244247912,-151.0,0.00021621,2]
[379306093,1755244247922,-842.23562724,0.00021679,2]
[379306094,1755244247932,-1500.0,0.00021685,2]
[379306095,1755244247942,-1500.0,0.00021685,2]
[379306096,1755244247951,-1500.0,0.00021685,2]
[379306097,1755244247960,-151.0,0.00021702,2]
[379306098,1755244247969,-151.0,0.00021702,2]
[379306099,1755244247979,-151.0,0.00021718,2]
[379306100,1755244247988,-151.0,0.00021719,2]
[379306101,1755244247997,-151.0,0.00021719,2]
[379306102,1755244248006,-151.0,0.00021719,2]
[379306103,1755244248015,-190.722448,0.00021719,2]
[379306104,1755244248025,-153.899524,0.00021719,2]
[379306105,1755244248034,-151.0,0.00021719,2]
[379306106,1755244248043,-144160.39437567,0.00021719,2]
[379306107,1755244248053,-356.371576,0.00021741,2]
[379306108,1755244248062,-1500.0,0.00021741,2]
[379306109,1755244248072,-1500.0,0.00021741,2]
[379306110,1755244248081,-1000.0,0.00021776,2]
[379306111,1755244248092,-500.80922876,0.00021821,2]
[379306112,1755244248102,-250.0,0.00021821,2]
[379306113,1755244248111,-1000.0,0.00021821,2]
[379306114,1755244248121,-1000.0,0.00021821,2]
[379306115,1755244248131,-151.0,0.00021834,2]
[379306116,1755244248140,-274.759628,0.00021834,2]
[379306117,1755244248149,-277.231383,0.00021834,2]
[379306118,1755244248159,-277.231383,0.00021834,2]
[379306119,1755244248169,-277.231383,0.00021834,2]
[379306120,1755244248178,-277.231383,0.00021834,2]
[379306121,1755244248188,-277.231383,0.00021873,2]
[379306122,1755244248197,-277.231383,0.00021873,2]
[379306123,1755244248207,-200.0,0.00021906,20]
[379306124,1755244248216,-200.0,0.00021906,20]
[379306125,1755244248226,-200.0,0.00021906,20]
[379306126,1755244248236,-200.0,0.00021906,20]
[379306127,1755244248246,-200.0,0.00021906,20]
[379306128,1755244248255,-200.0,0.00021906,20]
[379306129,1755244248265,-200.0,0.00021906,20]
[379306130,1755244248274,-280.0,0.00021906,20]
[379306131,1755244248283,-151.0,0.00021918,2]
[379306132,1755244248292,-200.0,0.00021918,2]
[379306133,1755244248301,-6455.31058063,0.00021965,2]
[379306134,1755244248311,-151.0,0.00021965,7]
[379306135,1755244248320,-151.0,0.00021965,7]
[379306136,1755244248330,-260.0,0.00021983,2]
[379306137,1755244248340,-528.6,0.00022,2]
[379306138,1755244248350,-281.39,0.00022,2]
[379306139,1755244248359,-156.0,0.00022,2]
[379306140,1755244248368,-151.0,0.00022064,7]
[379306141,1755244248377,-2500.0,0.00022064,2]
[379306142,1755244248387,-277.231383,0.00022094,7]
[379306143,1755244248396,-277.231383,0.00022094,7]
[379306144,1755244248405,-172.874,0.0002223,2]
[379306145,1755244248414,-2000.0,0.00022233,2]
[379306146,1755244248424,-2000.0,0.00022233,2]
[379306147,1755244248433,-2000.0,0.00022233,2]
[379306148,1755244248441,-972.0,0.00022237,2]
[379306149,1755244248451,-636.0,0.00022237,2]
[379306150,1755244248459,-2152.0,0.00022237,2]
[379306151,1755244248468,-229.45032,0.00022255,7]
[379306152,1755244248477,-151.0,0.00022255,7]
[379306153,1755244248486,-151.0,0.00022255,7]
[379306154,1755244248495,-2000.0,0.00022289,2]
[379306155,1755244248505,-2000.0,0.00022289,2]
[379306156,1755244248516,-200.0,0.000223,4]
[379306157,1755244248525,-744.87481264,0.00022324,2]
[379306158,1755244248535,-200.0,0.00022368,2]
[379306159,1755244248544,-1500.0,0.00022368,2]
[379306160,1755244248555,-1500.0,0.00022368,2]
[379306161,1755244248565,-151.0,0.00022374,7]
[379306162,1755244248574,-277.231383,0.00022378,7]
[379306163,1755244248583,-277.231385,0.00022378,7]
[379306164,1755244248594,-500.0,0.0002239,2]
[379306165,1755244248603,-162.90863973,0.00022466,2]
[379306166,1755244248612,-954.0,0.00022475,2]
[379306167,1755244248621,-6455.31058063,0.00022481,2]
[379306168,1755244248631,-360.0,0.00022531,2]
[379306169,1755244248640,-199.55372205,0.00022548,2]
[379306170,1755244248649,-196.51432598,0.00022548,2]
[379306171,1755244248658,-152.2203204,0.00022548,2]
[379306172,1755244248667,-152.19330263,0.00022548,2]
[379306173,1755244248676,-152.06223514,0.00022548,2]
[379306174,1755244248685,-151.0,0.00022548,2]
[379306175,1755244248695,-615.0,0.00022548,2]
[379306176,1755244248704,-202.58548672,0.00022548,2]
[379306177,1755244248713,-224.39915183,0.00022548,2]
[379306178,1755244248722,-152.75126662,0.00022548,2]
[379306179,1755244248732,-152.09584781,0.00022548,2]
[379306180,1755244248741,-250.73508889,0.00022548,2]
[379306181,1755244248751,-151.0,0.00022548,2]
[379306182,1755244248760,-198.0,0.00022548,2]
[379306183,1755244248769,-151.0,0.00022548,2]
[379306184,1755244248779,-152.1694275,0.00022548,2]
[379306185,1755244248788,-152.50597449,0.00022548,2]
[379306186,1755244248797,-239.63920272,0.00022548,2]
[379306187,1755244248806,-500.0,0.00022548,2]
[379306188,1755244248816,-500.0,0.00022548,2]
[379306189,1755244248825,-954.0,0.00022564,2]
[379306190,1755244248835,-18502.69577858,0.00022578,2]
[379306191,1755244248845,-151.0,0.00022578,2]
[379306192,1755244248854,-500.0,0.00022578,2]
[379306193,1755244248863,-151.0,0.00022578,7]
[379306194,1755244248873,-400.0,0.00022603,2]
[379306195,1755244248882,-3000.0,0.00022612,2]
[379306196,1755244248891,-587.0,0.00022662,2]
[379306197,1755244248900,-500.442,0.000227,2]
[379306198,1755244248909,-2200.0,0.000227,2]
[379306199,1755244248919,-954.0,0.00022716,2]
[379306200,1755244248929,-151.0,0.00022726,3]
[379306201,1755244248938,-703.56632603,0.00022781,2]
[379306202,1755244248947,-1789.40976748,0.00022781,2]
[379306203,1755244248956,-570.48644263,0.00022781,2]
[379306204,1755244248965,-107333.24953792,0.000228,2]
[379306295,1755245432206,-5000.0,0.00018583,2]
[379306297,1755245432216,-203.19189994,0.00018961,2]
[379306299,1755245432225,-203.24920685,0.00018961,2]
[379306301,1755245432235,-500.0,0.00019178,2]
[379306303,1755245432245,-488.4773659,0.00019178,2]
[379306305,1755245432255,-1200.0,0.00019193,2]
[379306307,1755245432264,-300.0,0.00019194,2]
[379306309,1755245432273,-281.0,0.00019194,2]
[379306311,1755245432283,-300.0,0.00019194,2]
[379306313,1755245432292,-300.0,0.00019194,2]
[379306315,1755245432302,-1200.0,0.00019195,2]
[379306319,1755245432311,-160.0,0.00019198,2]
[379306320,1755245432320,-417.15472785,0.00019198,2]
[379306322,1755245432330,-160.0,0.00019198,2]
[379306324,1755245432339,-160.0,0.00019198,2]
[379306326,1755245432348,-160.0,0.00019198,2]
[379306328,1755245432358,-216.77912109,0.00019198,2]
[379306330,1755245432368,-160.0,0.00019198,2]
[379306332,1755245432377,-160.0,0.00019198,2]
[379306334,1755245432388,-160.0,0.00019198,2]
[379306336,1755245432398,-232.08354597,0.00019198,2]
[379306338,1755245432407,-528.28344625,0.00019198,2]
[379306340,1755245432417,-843.47195277,0.00019198,2]
[379306342,1755245432426,-215.63758983,0.00019198,2]
[379306344,1755245432435,-160.0,0.00019198,2]
[379306345,1755245432445,-462.0440047,0.00019198,2]
[379306347,1755245432454,-1776.96816254,0.000192,2]
[379306349,1755245432463,-200.0,0.00019579,20]
[379306351,1755245432473,-200.0,0.00019579,20]
[379306353,1755245432483,-200.0,0.00019579,20]
[379306355,1755245432492,-200.0,0.00019579,20]
[379306357,1755245432502,-200.0,0.00019579,20]
[379306359,1755245432511,-200.0,0.00019579,20]
[379306361,1755245432520,-181.275555,0.00019863,2]
[379306363,1755245432530,-471.03285364,0.00019898,2]
[379306365,1755245432539,-355.92592018,0.00019898,2]
[379306367,1755245432549,-460.0,0.00019899,2]
[379306369,1755245432558,-460.0,0.00019899,2]
[379306371,1755245432567,-8413.16909197,0.000199,2]
[379306373,1755245432577,-500.0,0.00020053,2]
[379306375,1755245432586,-500.0,0.00020386,2]
[379306377,1755245432595,-8413.16909186,0.00020416,2]
[379306379,1755245432604,-749.56182343,0.00020533,2]
[379306381,1755245432614,-500.0,0.00020633,2]
[379306383,1755245432624,-500.0,0.00020633,2]
[379306385,1755245432633,-500.0,0.00020633,2]
[379306386,1755245432643,-500.0,0.00020677,2]
[379306387,1755245432652,-500.0,0.00020677,2]
[379306388,1755245432661,-500.0,0.00020677,2]
[379306390,1755245432671,-606.07813515,0.00020677,2]
[379306392,1755245432681,-596.05185175,0.00020677,2]
[379306393,1755245432690,-500.0,0.00020677,2]
[379306394,1755245432700,-543.81172767,0.000207,2]
[379306395,1755245432709,-501.47569652,0.00020723,2]
[379306396,1755245432719,-501.07153285,0.0002076,2]
[379306398,1755245432728,-511.69269715,0.0002076,2]
[379306400,1755245432737,-500.0,0.0002076,2]
[379306401,1755245432747,-447.92,0.00020787,2]
[379306403,1755245432756,-503.74849276,0.00020793,2]
[379306405,1755245432766,-500.0,0.00020793,2]
[379306407,1755245432776,-500.0,0.00020793,2]
[379306409,1755245432785,-500.0,0.00020793,2]
[379306410,1755245432794,-500.0,0.00020793,2]
[379306412,1755245432803,-500.0,0.00020793,2]
[379306413,1755245432813,-500.0,0.00020793,2]
[379306415,1755245432823,-420.0,0.00020917,2]
[379306416,1755245432833,-8413.16909186,0.00020932,2]
[379306417,1755245432843,-491.18083748,0.00020943,2]
[379306418,1755245432853,-17842.522448,0.00020949,2]
[379306419,1755245432863,-151.0,0.00020949,2]
[379306420,1755245432873,-151.0,0.00020949,2]
[379306421,1755245432883,-473.20504275,0.00021033,2]
[379306422,1755245432893,-338.08459989,0.00021033,2]
[379306423,1755245432902,-201.39602192,0.00021033,2]
[379306424,1755245432912,-500.0,0.00021033,2]
[379306425,1755245432922,-500.0,0.00021033,2]
[379306426,1755245432931,-339.92104935,0.00021033,2]
[379306427,1755245432940,-500.0,0.00021033,2]
[379306429,1755245432950,-500.0,0.00021033,2]
[379306431,1755245432959,-499.05132119,0.00021033,2]
[379306432,1755245432969,-500.0,0.00021033,2]
[379306433,1755245432978,-500.0,0.00021033,2]
[379306434,1755245432989,-500.0,0.00021033,2]
[379306435,1755245432998,-500.0,0.00021033,2]
[379306436,1755245433007,-500.0,0.00021033,2]
[379306437,1755245433017,-500.0,0.00021033,2]
[379306438,1755245433027,-500.0,0.00021033,2]
[379306439,1755245433037,-621.53812309,0.00021033,2]
[379306440,1755245433046,-500.0,0.00021033,2]
[379306441,1755245433057,-550.90380879,0.00021033,2]
[379306442,1755245433067,-500.0,0.00021033,2]
[379306443,1755245433076,-500.0,0.00021033,2]
[379306444,1755245433085,-500.0,0.00021033,2]
[379306445,1755245433095,-500.0,0.00021033,2]
[379306446,1755245433111,-500.0,0.00021033,2]
[379306447,1755245433120,-500.0,0.00021033,2]
[379306448,1755245433129,-500.0,0.00021033,2]
[379306449,1755245433139,-500.0,0.00021033,2]
[379306450,1755245433149,-500.0,0.00021033,2]
[379306451,1755245433158,-500.0,0.00021033,2]
[379306452,1755245433168,-500.0,0.00021033,2]
[379306453,1755245433178,-500.0,0.00021033,2]
[379306454,1755245433188,-500.0,0.00021033,2]
[379306455,1755245433197,-500.0,0.00021033,2]
[379306456,1755245433207,-500.0,0.00021033,2]
[379306457,1755245433216,-500.0,0.00021033,2]
[379306458,1755245433226,-500.0,0.00021033,2]
[379306459,1755245433235,-1000.0,0.00021181,2]
[379306460,1755245433245,-151.0,0.00021208,2]
[379306461,1755245433255,-151.0,0.00021208,2]
[379306462,1755245433265,-151.0,0.00021208,2]
[379306463,1755245433275,-996.850206,0.00021225,2]
[379306464,1755245433284,-1000.0,0.00021225,2]
[379306465,1755245433294,-1000.0,0.00021225,2]
[379306466,1755245433303,-1069.39,0.0002129,10]
[379306467,1755245433312,-2850.0,0.000213,2]
[379306469,1755245433322,-1000.0,0.00021341,2]
[379306471,1755245433332,-8413.16909186,0.00021448,2]
[379306472,1755245433341,-200.0,0.00021499,20]
[379306473,1755245433351,-200.0,0.00021499,20]
[379306474,1755245433361,-200.0,0.00021499,20]
[379306475,1755245433371,-200.0,0.00021499,20]
[379306476,1755245433380,-200.0,0.00021499,20]
[379306477,1755245433390,-200.0,0.00021499,20]
[379306478,1755245433400,-200.0,0.00021499,20]
[379306479,1755245433409,-280.0,0.00021499,20]
[379306480,1755245433419,-491.18083745,0.00021584,2]
[379306481,1755245433429,-151.0,0.00021596,2]
[379306482,1755245433438,-749.56182337,0.00021633,2]
[379306483,1755245433448,-853.9705549,0.00021642,2]
[379306484,1755245433458,-853.9705549,0.00021642,2]
[379306485,1755245433467,-853.9705549,0.00021642,2]
[379306486,1755245433477,-853.9705549,0.00021642,2]
[379306487,1755245433486,-853.9705549,0.00021642,2]
[379306488,1755245433496,-853.9705549,0.00021642,2]
[379306489,1755245433506,-853.9705549,0.00021642,2]
[379306490,1755245433516,-853.9705549,0.00021642,2]
[379306491,1755245433525,-853.9705549,0.00021642,2]
[379306492,1755245433534,-853.9705549,0.00021642,2]
[379306493,1755245433542,-853.9705549,0.00021642,2]
[379306494,1755245433551,-853.9705549,0.00021642,2]
[379306495,1755245433561,-853.9705549,0.00021642,2]
[379306496,1755245433570,-853.9705549,0.00021642,2]
[379306497,1755245433579,-896.66908265,0.00021642,2]
[379306498,1755245433588,-896.66908265,0.00021642,2]
[379306499,1755245433597,-896.66908265,0.00021642,2]
[379306500,1755245433607,-896.66908265,0.00021642,2]
[379306501,1755245433616,-896.66908265,0.00021642,2]
[379306502,1755245433625,-896.66908265,0.00021642,2]
[379306503,1755245433635,-896.66908265,0.00021642,2]
[379306504,1755245433645,-896.66908265,0.00021642,2]
[379306505,1755245433655,-925.36249329,0.00021642,2]
[379306506,1755245433664,-925.36249329,0.00021642,2]
[379306507,1755245433673,-925.36249329,0.00021642,2]
[379306508,1755245433682,-925.36249329,0.00021642,2]
[379306509,1755245433692,-925.36249329,0.00021642,2]
[379306510,1755245433701,-12500.0,0.00021643,7]
[379306511,1755245433711,-5894.93615754,0.00021643,7]
[379306512,1755245433721,-215.63758983,0.00021643,7]
[379306513,1755245433730,-160.0,0.00021691,2]
[379306514,1755245433739,-1500.0,0.00021729,2]
[379306515,1755245433748,-1500.0,0.00021773,2]
[379306516,1755245433757,-1500.0,0.00021773,2]
[379306517,1755245433767,-895.83,0.00021777,2]
[379306518,1755245433777,-1000.0,0.00021889,2]
[379306519,1755245433787,-200.0,0.00021918,2]
[379306520,1755245433797,-8413.16909186,0.00021965,2]
[379306521,1755245433807,-156.0,0.00022,2]
[379306522,1755245433817,-491.18083745,0.00022225,2]
[379306523,1755245433826,-972.0,0.00022237,2]
[379306524,1755245433836,-2152.0,0.00022237,2]
[379306525,1755245433845,-636.0,0.00022237,2]
[379306526,1755245433855,-417.652,0.00022237,2]
[379306527,1755245433864,-260.0,0.00022239,2]
[379306528,1755245433873,-2000.0,0.00022277,2]
[379306529,1755245433883,-18502.69577858,0.00022318,2]
[379306530,1755245433893,-151.0,0.00022318,2]
[379306531,1755245433902,-2012.78955178,0.00022321,2]
[379306532,1755245433912,-2000.0,0.00022321,2]
[379306533,1755245433921,-171.793,0.00022324,2]
[379306534,1755245433930,-168.0,0.00022444,2]
[379306535,1755245433940,-1472.0,0.00022455,2]
[379306536,1755245433949,-8413.16909186,0.00022481,2]
[379306537,1755245433960,-51798.0,0.000225,2]
[379306538,1755245433970,-151.0,0.000225,7]
[379306539,1755245433980,-151.0,0.000225,7]
[379306540,1755245433990,-151.0,0.000225,7]
[379306541,1755245434000,-151.0,0.000225,7]
[379306542,1755245434009,-152.64351678,0.00022548,2]
[379306543,1755245434019,-589.0,0.00022548,2]
[379306544,1755245434029,-151.0,0.00022548,2]
[379306545,1755245434038,-151.0,0.00022548,2]
[379306546,1755245434048,-151.0,0.00022548,2]
[379306547,1755245434058,-151.0,0.00022548,2]
[379306548,1755245434068,-1018.0,0.00022559,2]
[379306549,1755245434078,-415.8545045,0.00022575,2]
[379306550,1755245434087,-293.6830486,0.00022575,2]
[379306551,1755245434097,-293.6830486,0.00022575,2]
[379306552,1755245434110,-293.6830486,0.00022575,2]
[379306553,1755245434119,-293.6830486,0.00022575,2]
[379306554,1755245434129,-293.6830486,0.00022575,2]
[379306555,1755245434139,-293.6830486,0.00022575,2]
[379306556,1755245434149,-293.6830486,0.00022575,2]
[379306557,1755245434159,-293.6830486,0.00022575,2]
[379306558,1755245434168,-293.6830486,0.00022575,2]
[379306559,1755245434179,-500.0,0.00022578,2]
[379306560,1755245434188,-168.0,0.000226,2]
[379306561,1755245434198,-200.0,0.00022603,2]
[379306562,1755245434207,-168.0,0.00022711,2]
[379306563,1755245434217,-151.0,0.0002276,3]
[379306564,1755245434226,-1343.75,0.00022767,2]
[379306565,1755245434236,-360.0,0.00022787,2]
[379306566,1755245434246,-4165.20926833,0.0002279,2]
[379306567,1755245434256,-587.0,0.00022795,2]
[379306568,1755245434265,-68963.61834591,0.000228,2]
[379306569,1755245434279,-1865.26768863,0.000228,2]
[379306616,1755245438336,-749.56182337,0.00022733,2]
[379306618,1755245438347,-10539.10888584,0.000228,2]
[379306620,1755245438359,-5972.29364013,0.000228,2]
[379306829,1755245443164,-340.18152873,0.000228,2]
[379306831,1755245443176,-12123.000002,0.000228,2]
[379307103,1755245445986,-5687.39317042,0.000228,2]
[379307105,1755245445998,-5579.304464,0.000228,2]
[379307108,1755245446009,-4224.08326657,0.000228,2]
[379307115,1755245446072,-1345.24251378,0.000228,2]
[379309040,1755246434135,-234.070848,0.00018201,2]
[379309041,1755246443093,-3442.65839043,0.00018201,2]
[379309053,1755246560086,-266.34763533,0.00018201,2]
[379309054,1755246560106,-184.45236467,0.00018671,2]
[379309131,1755246635231,-898.48,0.00018484,2]
[379309132,1755246635243,-3322.2226758,0.00018484,2]
[379309133,1755246635252,-18.79684218,0.00018671,2]
[379309134,1755246635261,-362.54115178,0.000189,2]
[379309135,1755246635270,-180.140805,0.00019863,2]
[379309136,1755246635280,-160.0,0.00019896,2]
[379309137,1755246635289,-264.0,0.00019898,2]
[379309138,1755246635298,-300.0,0.00019898,2]
[379309139,1755246635307,-898.0,0.00019898,2]
[379309140,1755246635316,-460.0,0.00019899,2]
[379309141,1755246635325,-5708.55757731,0.000199,2]
[379309142,1755246635334,-460.0,0.00020173,2]
[379309143,1755246635343,-200.0,0.00020297,20]
[379309144,1755246635351,-200.0,0.00020297,20]
[379309145,1755246635360,-200.0,0.00020297,20]
[379309146,1755246635369,-200.0,0.00020297,20]
[379309147,1755246635379,-200.0,0.00020297,20]
[379309148,1755246635387,-200.0,0.00020297,20]
[379309149,1755246635396,-200.0,0.00020297,20]
[379309150,1755246635405,-200.0,0.00020297,20]
[379309151,1755246635414,-500.0,0.00020386,2]
[379309152,1755246635422,-5708.55757726,0.00020416,2]
[379309153,1755246635431,-487.2468826,0.00020447,2]
[379309154,1755246635440,-500.0,0.0002065,2]
[379309155,1755246635452,-500.0,0.0002065,2]
[379309156,1755246635461,-215.63758983,0.00020691,2]
[379309157,1755246635469,-160.0,0.00020691,2]
[379309158,1755246635478,-160.0,0.00020692,2]
[379309159,1755246635487,-417.15472785,0.00020692,2]
[379309160,1755246635497,-216.77912109,0.00020692,2]
[379309161,1755246635505,-251.10025983,0.000209,2]
[379309162,1755246635514,-5708.55757726,0.00020932,2]
[379309163,1755246635523,-471.93121879,0.00021,2]
[379309164,1755246635532,-1000.0,0.00021198,2]
[379309165,1755246635541,-5708.55757726,0.00021448,2]